[Event "Tata Steel-A 80th"]
[Site "Wijk aan Zee"]
[Date "2018.01.13"]
[Round "1"]
[White "Anand, Viswanathan"]
[Black "Matlakov, Maxim"]
[Result "1-0"]
[ECO "C77"]
[WhiteElo "2767"]
[BlackElo "2718"]
[Annotator "Fernandez,D"]
[PlyCount "105"]
[EventDate "2018.01.13"]
[EventType "tourn"]
[EventRounds "13"]
[EventCountry "NED"]
[EventCategory "20"]
[SourceTitle "CBM 183"]
[Source "ChessBase"]
[SourceDate "2018.03.14"]
[SourceVersion "1"]
[SourceVersionDate "2018.03.14"]
[SourceQuality "1"]
[TimeControl "40/5400+30:1800+30"]

1. e4 {[%emt 0:00:00]} e5 {[%emt 0:00:00]} 2. Nf3 {[%emt 0:00:00]} Nc6 {
[%emt 0:00:00]} 3. Bb5 {[%emt 0:00:00]} a6 {[%emt 0:00:00]} 4. Ba4 {[%emt 0:00:
00]} Nf6 {[%emt 0:00:00]} 5. d3 {[%emt 0:00:00]} b5 {[%emt 0:00:00]} 6. Bb3 {
[%emt 0:00:00]} Bc5 {[%emt 0:00:00]} 7. c3 {[%emt 0:00:00]} d6 {[%emt 0:03:54]
Black should play this sooner or later. The alternative is essentially ...d5,
which is double-edged in the Italian and probably borderline suicidal now
Black has played ...b5.} 8. Bg5 {[%emt 0:00:00]} h6 {[%emt 0:04:28]} 9. Bh4 {
[%emt 0:00:00]} g5 {[%emt 0:18:01]} 10. Bg3 {[%emt 0:00:00] We will not be
getting a repeat of the various 'draw lines' Anand has played which involve
sacrifices on g5 against a castled king, and then perpetual check...} Ba7 {
[%emt 0:00:27]} (10... Bb6 {may keep marginally more options open, including
contesting the a-file 'properly'.} 11. Nbd2 O-O 12. Qe2 Ne7 {and now} 13. d4
Ng6 $5 $132 {Alekseev,E-Predke,A Kaliningrad 2015, was an interesting and
ultimately successful pawn sacrifice.}) 11. Nbd2 {[%emt 0:00:15]} Na5 {[%emt 0:
04:55]} 12. Bc2 {[%emt 0:07:08]} Nh5 {[%emt 0:00:55] We are now in new
territory, and Black is playing extremely inventively. However, Anand is not
to be outdone.} 13. a4 $5 {[%emt 0:02:53] Highlighting a problem with ...Ba7,
but at the same time committing to playing the sacrifice that follows. White
is playing maximalist chess.} (13. b4 {DF} Nc6 14. a4 $132 {might have been a
more normal way to play.}) 13... b4 {[%emt 0:04:12]} 14. cxb4 {[%emt 0:06:43]}
Nc6 {[%emt 0:02:01]} 15. b5 {[%emt 0:00:22]} Nb4 {[%emt 0:02:05]} 16. Nc4 {
[%emt 0:03:49]} (16. O-O $6 {may be possible, but is a bit wet and White does
not have the fun after} Nxg3 17. hxg3 h5 $44) 16... Nxg3 {[%emt 0:08:39]} 17.
hxg3 {[%emt 0:01:12]} g4 {[%emt 0:11:04] Black commits!} (17... axb5 18. axb5
Bxf2+ $2 {does not work immediately as Black's knight lacks proper access to
d4.} 19. Kxf2 Rxa1 20. Qxa1 Nxc2 21. Qa4 $1 $16) (17... Bc5 $44 {was still
possible, looking for compensation - I am reasonably sure it is sufficient.})
18. Nh4 {[%emt 0:09:07]} axb5 {[%emt 0:01:48]} 19. axb5 {[%emt 0:01:21]} Bxf2+
{[%emt 0:01:56]} 20. Kxf2 {[%emt 0:00:09]} Rxa1 {[%emt 0:00:08]} 21. Qxa1 {
[%emt 0:00:10]} Nxc2 {[%emt 0:00:16]} 22. Qa4 {[%emt 0:03:23] White had
presumably envisaged this position up to ten moves in advance and liked his
practical chances. White's knights hop around in pleasing ways near the black
king, while White's kingside construction with the h4-knight and (soon to be)
h2-king is watertight.} Qf6+ {[%emt 0:04:00]} (22... Nd4 23. b6+ Kf8 24. bxc7
Qxc7 $11 {was also interesting, but the d6-pawn is weak.}) 23. Kg1 {[%emt 0:08:
04]} Nd4 {[%emt 0:01:21]} 24. b6+ {[%emt 0:02:43]} Bd7 {[%emt 0:10:24]} 25. Qd1
{[%emt 0:00:30]} cxb6 {[%emt 0:00:08]} 26. Kh2 {[%emt 0:02:56] Reaching a
position which is only ever going to be hard for Black to play.} O-O {[%emt 0:
02:11]} (26... b5 27. Rf1 Qe7 28. Ne3 {gives White either the d5-square or
g4-pawn}) 27. Rf1 {[%emt 0:00:37]} Qg5 $6 {[%emt 0:04:21] A minor inaccuracy,
giving up the wrong pawn, and White's moves just keep playing themselves.} (
27... Qe7 28. Ne3 Qg5 $1 {was the right time to place the queen here. Now} 29.
Nhf5 Bxf5 30. Nxf5 Qh5+ 31. Kg1 Nxf5 32. Rxf5 Qg6 $11 {could follow, when
White's position is still easier but his king has lost its bomb shelter.}) 28.
Nxd6 $14 {[%emt 0:00:14]} Be6 {[%emt 0:00:29]} 29. Nhf5 {[%emt 0:01:05]} Nxf5
$6 {[%emt 0:05:07]} (29... Rd8 30. Nxd4 Rxd6 31. Nxe6 Rxe6 32. Rf5 Qg6 33. Qb3
$14 {is similar to the last note but with White having better co-ordination.
Still, this was an interesting try, not least because Black can now try and do
'nothing' e.g. ...Re8 and ...Qe6, and try to complete the fortress with ...
Kh7-g6 and ...h5.}) 30. exf5 {[%emt 0:06:17]} Bd5 {[%emt 0:00:07]} 31. Qe2 $1 {
[%emt 0:01:34]} Qf6 {[%emt 0:05:45]} (31... f6 32. d4 {is a slightly
non-obvious point until you reach the position itself, whereupon it becomes
clear that White's rook needs to be on f4, and simultaneously one sees how to
accomplish this.}) 32. Qxg4+ {[%emt 0:02:12]} Kh7 {[%emt 0:00:15]} 33. Ne4 {
[%emt 0:00:54]} Bxe4 {[%emt 0:00:03]} 34. dxe4 {[%emt 0:02:59]} Rd8 {[%emt 0:
03:07]} 35. Rc1 $16 {[%emt 0:11:40] This is now a truly thankless position as
the fortress tries will never quite work and the rook ending is lost. White
just plays with ideas for a few moves until he works out what he wants to do.}
Rd4 {[%emt 0:04:08]} 36. Rc7 {[%emt 0:08:10]} Rb4 {[%emt 0:00:10]} 37. Qe2 {
[%emt 0:01:05]} Kg7 {[%emt 0:00:54]} 38. Rc8 {[%emt 0:07:37]} Qg5 {[%emt 0:00:
55]} 39. Rc6 {[%emt 0:01:01]} Rb3 {[%emt 0:00:38]} 40. Rc3 {[%emt 0:00:00]} Rb4
{[%emt 0:00:00]} 41. b3 {[%emt 0:00:00]} Rd4 {[%emt 0:00:00]} 42. Rc6 {[%emt 0:
00:00]} Rb4 {[%emt 0:00:00]} 43. Qf3 {[%emt 0:00:00]} Kh7 {[%emt 0:00:00]} 44.
Rd6 {[%emt 0:00:00]} Kg7 {[%emt 0:00:00]} 45. Rd5 {[%emt 0:00:00] Now White's
rook is the centralised one!} Qf6 {[%emt 0:00:00]} 46. Kg1 {[%emt 0:00:40]} Kh7
{[%emt 0:02:50]} 47. Qd3 {[%emt 0:02:20]} Kg7 {[%emt 0:01:54]} 48. Kf2 {
[%emt 0:04:54]} Rd4 $2 {[%emt 0:12:00] Understandable in view of the various
rook-trap motifs White has, but the last try was to wait for Qc3 before doing
this, so that the recapture would come with tempo and then Black might get a
good square like e3 or e5 for his queen.} (48... Qe7 {DF} 49. Kf3 Qf6 50. Qc3
Rd4 51. Rxd4 exd4 52. Qd3 Qd6 $16 {is for instance not that much better for
White.}) 49. Rxd4 {[%emt 0:01:11]} exd4 {[%emt 0:00:04]} 50. Qb5 {[%emt 0:00:
22]} Qd8 {[%emt 0:02:09]} 51. Qd5 {[%emt 0:02:42]} Qf6 {[%emt 0:01:24]} 52. g4
{[%emt 0:04:30]} Kg8 {[%emt 0:00:37]} 53. Kf3 {[%emt 0:03:32] Black had no
desire to play out the queen ending, especially since e5 will win a further
pawn.} 1-0

[Event "Tata Steel-A 80th"]
[Site "Wijk aan Zee"]
[Date "2018.01.13"]
[Round "1"]
[White "Carlsen, Magnus"]
[Black "Caruana, Fabiano"]
[Result "1/2-1/2"]
[ECO "C42"]
[WhiteElo "2834"]
[BlackElo "2811"]
[Annotator "Fernandez,D"]
[PlyCount "80"]
[EventDate "2018.01.13"]
[EventType "tourn"]
[EventRounds "13"]
[EventCountry "NED"]
[EventCategory "20"]
[SourceTitle "CBM 183"]
[Source "ChessBase"]
[SourceDate "2018.03.14"]
[SourceVersion "1"]
[SourceVersionDate "2018.03.14"]
[SourceQuality "1"]
[TimeControl "40/5400+30:1800+30"]

1. e4 {[%emt 0:00:00]} e5 {[%emt 0:00:00]} 2. Nf3 {[%emt 0:00:00]} Nf6 {
[%emt 0:00:00]} 3. Nxe5 {[%emt 0:00:00]} d6 {[%emt 0:00:00]} 4. Nf3 {[%emt 0:
00:00]} Nxe4 {[%emt 0:00:00]} 5. Qe2 {[%emt 0:00:00] A minor choice, generally
renowned for leading to a drawish ending.'} Qe7 {[%emt 0:00:00]} 6. d3 {
[%emt 0:00:00]} Nf6 {[%emt 0:00:00]} 7. Nc3 {[%emt 0:00:00]} Qxe2+ {[%emt 0:06:
40]} 8. Bxe2 {[%emt 0:00:00]} g6 {[%emt 0:00:12]} ({On schematic grounds, I
might have preferred} 8... c6 {[%csl Rc3] to close off all options of Nb5 and
'dominate' the c3-knight. The followup could then be ...d5 and ...Bg4, with
the idea of trying to exchange the light-squared bishop for anything, and
exchange the pair of dark-squared bishops.}) 9. Nd4 {[%emt 0:05:37]} a6 {
[%emt 0:04:25]} 10. Bf4 {[%emt 0:05:06] Now this pressures the d6-pawn, so as
to prevent ...c6 following a fianchetto. Black has little choice but to play ..
.Nc6 one way or another, and he will be left with doubled pawns.'} Bg7 {
[%emt 0:00:33]} (10... Nbd7 {is the maximalist move, trying to prevent Bf3
altogether.}) 11. h3 {[%emt 0:00:43]} Bd7 {[%emt 0:06:15]} 12. Bf3 {[%emt 0:00:
36]} Nc6 {[%emt 0:00:15]} 13. Nxc6 {[%emt 0:00:14]} Bxc6 {[%emt 0:00:05]} 14.
Bxc6+ {[%emt 0:00:13]} bxc6 {[%emt 0:00:06]} 15. O-O-O {[%emt 0:00:50]} Kd7 {
[%emt 0:06:33] Objectively, there is nothing whatsoever wrong with Black's
position, and as long as one doesn't get carried away with premonitions of
White kings appearing on a5 after the rooks come off (echoes of Rubinstein)
then it is also easy enough to play.'} 16. Rhe1 {[%emt 0:01:14]} Rhe8 {[%emt 0:
04:33]} 17. Ne4 {[%emt 0:00:42]} (17. Bd2 {[%cal Ge1e8,Gd1e1] may have been
wisest, focusing on the task of exchanging all the rooks as quickly as
possible and then placing pawns on light squares.}) 17... Nd5 {[%emt 0:07:57]}
(17... Nxe4 18. dxe4 Re6 19. f3 Rae8 20. Bd2 {[%cal Gc2c4,Gc1c2] is also fine
but now White's moves are definitely easier to find, starting with c4, Kc2, b3.
}) 18. Bd2 {[%emt 0:00:11]} f5 {[%emt 0:02:42]} 19. Ng5 {[%emt 0:00:11]} h6 {
[%emt 0:00:09]} 20. Nf3 {[%emt 0:00:09]} g5 {[%emt 0:04:07]} 21. c3 {[%emt 0:
02:59]} c5 {[%emt 0:07:56]} 22. Kc2 {[%emt 0:02:16]} Bf6 {[%emt 0:00:30]} ({
The computer wants} 22... a5 {but it can never be good to allow this pawn to
be fixed.}) 23. Rxe8 {[%emt 0:01:08]} Rxe8 {[%emt 0:01:29]} 24. Re1 {[%emt 0:
00:11]} Rf8 {[%emt 0:05:21]} 25. Rh1 {[%emt 0:01:51]} Re8 {[%emt 0:06:55]} 26.
g3 {[%emt 0:01:59]} g4 {[%emt 0:09:09]} 27. Ng1 {[%emt 0:00:38]} Bg5 {[%emt 0:
00:14]} 28. Kd1 {[%emt 0:06:20]} a5 {[%emt 0:11:46]} 29. Ne2 {[%emt 0:02:30]
One of several acceptable moves.} (29. a4 Rb8 $1 $15 {was the point and White
is being stretched a bit thin.}) 29... a4 {[%emt 0:00:13]} (29... Rb8 $5 30. b3
a4 31. Bxg5 hxg5 {is a little bit testing, perhaps}) 30. Bxg5 {[%emt 0:05:53]}
hxg5 {[%emt 0:00:15]} 31. hxg4 {[%emt 0:00:09]} fxg4 {[%emt 0:00:04]} 32. Rh5 {
[%emt 0:00:22]} Re5 {[%emt 0:01:40]} 33. Rh7+ {[%emt 0:00:31]} Ke6 {[%emt 0:07:
59]} 34. a3 {[%emt 0:13:54]} (34. d4 {screams out to be played, but there is
nothing much going on here either:} Rf5 35. c4 Nb6 36. b3 axb3 37. axb3 Rf3 $11
{Nevertheless, this was marginally safer for White than the game.}) 34... Rf5 {
[%emt 0:00:09]} 35. c4 {[%emt 0:02:06]} Nf6 {[%emt 0:05:21]} 36. Rh2 {[%emt 0:
00:45] It looks slightly dangerous to a human to allow ...Rxf2, because ...
Nd7-e5 with pressure will follow soon.'} Rf3 {[%emt 0:00:52]} 37. Kc2 {[%emt 0:
00:51]} Nd7 {[%emt 0:00:45]} 38. d4 {[%emt 0:05:54] Else White is in very
obvious difficulties.} Nb6 {[%emt 0:00:17]} (38... Rf5 {is a sensible engine
suggestion; this keeps a bit of pressure by not clarifying the situation of
the d4-pawn.} 39. Kd3 (39. Rh7 Nb6 40. dxc5 Rxc5 $36) 39... Rf7 {An engine
move; what was your first clue?} 40. Rh6+ $6 Ke7 41. Rh2 cxd4 42. Nxd4 Ne5+ 43.
Kc3 c5 $15) 39. dxc5 {[%emt 0:00:42]} dxc5 {[%emt 0:00:07]} 40. Nc3 {[%emt 0:
00:00]} Ke5 (40... Ke5 {[%emt 0:00:00]} {Presumably the expected continuation
was:} 41. Nd1 {[%emt 0:00:00]} Nxc4 42. Rh5 Kd4 43. Rxg5 Ne5 44. Rg7 {when
White is completely out of the woods.}) 1/2-1/2

[Event "Tata Steel-A 80th"]
[Site "Wijk aan Zee"]
[Date "2018.01.14"]
[Round "2"]
[White "Hou, Yifan"]
[Black "Mamedyarov, Shakhriyar"]
[Result "0-1"]
[ECO "C01"]
[WhiteElo "2680"]
[BlackElo "2804"]
[Annotator "Fernandez,D"]
[PlyCount "96"]
[EventDate "2018.01.13"]
[EventType "tourn"]
[EventRounds "13"]
[EventCountry "NED"]
[EventCategory "20"]
[SourceTitle "CBM 183"]
[Source "ChessBase"]
[SourceDate "2018.03.14"]
[SourceVersion "1"]
[SourceVersionDate "2018.03.14"]
[SourceQuality "1"]
[TimeControl "40/6000+30:20/3000+30:900+30"]

1. e4 {[%emt 0:00:00]} e6 {[%emt 0:00:07]} 2. d4 {[%emt 0:00:00]} d5 {[%emt 0:
00:04]} 3. Nc3 {[%emt 0:00:15]} Bb4 {[%emt 0:00:10]} 4. exd5 {[%emt 0:01:29]}
exd5 {[%emt 0:00:33]} 5. Bd3 {[%emt 0:00:06]} Nc6 {[%emt 0:03:23]} 6. a3 {
[%emt 0:01:23]} Ba5 {[%emt 0:01:23] This is optimistic, ...Bxc3 is the move
you play if you would like to hold a solid draw.} 7. Nge2 {[%emt 0:10:04]} Nge7
{[%emt 0:04:29]} 8. O-O {[%emt 0:01:40]} O-O {[%emt 0:05:19]} 9. Bg5 {[%emt 0:
09:40]} (9. Na4 $5 {demands attention, because the bishop pair is almost never
bad to have. An old game by an (East) German grandmaster went:} Bf5 10. Nc5 Qc8
11. Bg5 Bb6 12. b4 Bxc5 13. dxc5 Re8 $11 {Schmittdiel,E-Uhlmann,W Germany 1992}
) 9... f6 {[%emt 0:11:03]} 10. Be3 {[%emt 0:03:14]} Bf5 {[%emt 0:02:12]} 11.
Nf4 $6 {[%emt 0:21:07] The computer sees no problem with this, but compared to
move 6, Black is much better developed and ready to take advantage of the
structural problem this implies.} Bxc3 {[%emt 0:13:27]} 12. bxc3 {[%emt 0:03:
23]} Qd7 {[%emt 0:02:49]} 13. c4 {[%emt 0:05:29]} Bxd3 {[%emt 0:00:46]} (13...
Na5 {is the engine recommendation, but the compact structure after} 14. cxd5
Nxd5 15. c4 Nxe3 16. fxe3 {may be better for White than it thinks.}) 14. Qxd3 {
[%emt 0:00:07]} Rad8 {[%emt 0:08:24]} 15. Rab1 {[%emt 0:06:06]} (15. cxd5 Nxd5
16. Nxd5 Qxd5 17. c4 $132 {is worth a look: the blitzy ...Ne5 gets the knight
trapped, and when White gets d5 in his bishop will be of equal value to the
knight.}) 15... b6 {[%emt 0:01:24]} 16. Rb5 $6 {[%emt 0:07:46] Now Black is
slightly better already - this rook is tactically weak and does not coordinate
well with the rest of the pieces.} dxc4 {[%emt 0:04:23]} 17. Qxc4+ {[%emt 0:00:
05]} Rf7 {[%emt 0:00:01]} 18. Rd1 {[%emt 0:02:50] This doesn't help either -
now everything comes with tempo.} Na5 {[%emt 0:04:43]} 19. Qd3 {[%emt 0:05:53]}
c6 {[%emt 0:00:57]} 20. Rbb1 {[%emt 0:01:36]} Qf5 $15 {[%emt 0:03:50]} 21. a4 {
[%emt 0:06:09]} (21. Qe2 Nd5 22. Nxd5 cxd5 23. Qd3 {might not be so dreadful.})
21... g5 $1 {[%emt 0:05:57]} 22. Nh5 {[%emt 0:04:22]} Qxd3 {[%emt 0:02:09]} 23.
Rxd3 {[%emt 0:00:04]} Nd5 {[%emt 0:00:06]} 24. Bd2 {[%emt 0:00:06]} Nc4 {
[%emt 0:00:31] This position is almost winning at the elite level, and
Mamedyarov's 'tactically informed technique' is nearly perfect.} 25. Re1 {
[%emt 0:01:52]} h6 {[%emt 0:04:35]} 26. h4 {[%emt 0:01:47]} (26. Re6 Rd6 27.
Re8+ Kh7 28. h3 {may have been worth a try, just to keep two active pieces})
26... Kh7 {[%emt 0:02:05]} 27. g4 {[%emt 0:06:25]} gxh4 {[%emt 0:01:49]} 28.
Re6 {[%emt 0:02:41]} Rd6 {[%emt 0:03:24]} 29. Rxd6 {[%emt 0:03:33]} Nxd6 {
[%emt 0:00:05]} 30. f3 {[%emt 0:00:36]} f5 $19 {[%emt 0:01:16]} 31. Be1 {
[%emt 0:01:16]} a5 {[%emt 0:06:48]} 32. Bxh4 {[%emt 0:02:12]} b5 {[%emt 0:01:
10]} 33. Ra3 {[%emt 0:00:44]} Nc4 {[%emt 0:03:26]} 34. Ra1 {[%emt 0:00:01]}
fxg4 {[%emt 0:00:37]} 35. fxg4 {[%emt 0:00:01]} Nde3 {[%emt 0:00:15]} 36. Nf6+
{[%emt 0:01:22]} Kg6 {[%emt 0:00:19]} 37. d5 {[%emt 0:00:06]} cxd5 {[%emt 0:03:
53]} 38. axb5 {[%emt 0:00:07]} Rxf6 {[%emt 0:00:16] Gaining material, though
there might have been some last bit of optimisation to do.} (38... Nxc2 39. Rc1
(39. Rb1 Nd2 $19) 39... Nd4 40. Kg2 Rxf6 41. Bxf6 Kxf6 42. Rb1 Nb6 {obtains
the same position with the c2-pawn gone.}) 39. Bxf6 {[%emt 0:00:03]} Kxf6 {
[%emt 0:00:03]} 40. c3 {[%emt 0:00:00]} (40. Kf2 Nxg4+ 41. Kf3 Nge5+ 42. Kf4 {
was the last try to pose practical problems, in my opinion}) 40... Ke6 $19 {
[%emt 0:02:25] Now Black's pieces all have defined roles: the Black king will
stop the b-pawn, and then take it once the a-pawn has distracted White's rook.}
41. b6 {[%emt 0:05:25]} Kd7 {[%emt 0:00:11]} 42. Rb1 {[%emt 0:00:25]} Kc8 {
[%emt 0:00:05]} 43. b7+ {[%emt 0:00:39]} Kb8 {[%emt 0:00:04]} 44. Kf2 {[%emt 0:
00:04]} a4 {[%emt 0:05:13]} 45. Ke2 {[%emt 0:04:33]} a3 {[%emt 0:03:51]} 46.
Kd3 {[%emt 0:01:52]} Nxg4 {[%emt 0:02:10]} 47. Kd4 {[%emt 0:00:31]} Nd2 {
[%emt 0:05:13]} (47... Nge3 {and ...Nc2 and ...a2 would have been as per the
original plan, but there is a tactic instead.}) 48. Rb4 {[%emt 0:04:52]} a2 {
[%emt 0:00:20]} 0-1